bitfinex-derivatives/quotes_BTCF0:USTF0_20250130
["timestamp","ask_amount","ask_price","bid_price","bid_amount"]
[1738200905104,0.36280426,104550.0,104540.0,0.552123]
[1738200905810,0.002,104550.0,104540.0,1.1184869]
[1738200906008,0.002,104550.0,104540.0,0.975423]
[1738200906310,0.4044328,104550.0,104530.0,0.72241719]
[1738200906503,0.2044639,104540.0,104530.0,0.72241719]
[1738200906704,0.2498639,104540.0,104530.0,0.72241719]
[1738200907105,0.1443,104540.0,104530.0,0.72241719]
[1738200907323,0.1112,104540.0,104530.0,0.72241719]
[1738200908307,0.1122,104540.0,104530.0,0.72241719]
[1738200908917,0.19823541,104540.0,104530.0,0.55227898]
[1738200909919,0.08703541,104540.0,104530.0,0.66227898]
[1738200910117,0.08703541,104540.0,104530.0,0.69537898]
[1738200910614,0.08703541,104540.0,104530.0,0.72687898]
[1738200911601,0.08703541,104540.0,104530.0,0.74136705]
[1738200912414,0.22319931,104550.0,104530.0,2.05003205]
[1738200912716,0.22319931,104550.0,104540.0,0.552123]
[1738200914116,0.11763541,104550.0,104540.0,0.552123]
[1738200915313,0.11863541,104550.0,104540.0,0.552123]
[1738200915511,0.171934,104570.0,104540.0,0.9819278]
[1738200915717,0.20017506,104580.0,104570.0,0.191269]
[1738200916014,0.20017506,104580.0,104570.0,0.6576329]
[1738200916216,0.20017506,104580.0,104570.0,0.7076329]
[1738200916511,0.20017506,104580.0,104570.0,0.6576329]
[1738200916908,0.14997506,104580.0,104570.0,0.6576329]
[1738200917105,0.20577095,104590.0,104580.0,0.19125]
[1738200917316,0.58555647,104600.0,104590.0,0.191232]
[1738200917508,0.58487647,104600.0,104590.0,0.191232]
[1738200917705,0.58487647,104600.0,104590.0,1.691232]
[1738200918017,0.58487647,104600.0,104590.0,2.052032]
[1738200918619,0.39366247,104600.0,104590.0,2.1575959]
[1738200918817,0.39366247,104600.0,104590.0,2.1585959]
[1738200919209,0.39566247,104600.0,104590.0,0.553032]
[1738200920418,0.39566247,104600.0,104590.0,0.6585959]
[1738200921720,0.36426247,104600.0,104590.0,0.6585959]
[1738200922318,0.164,104600.0,104590.0,0.6585959]
[1738200922617,0.164,104600.0,104590.0,0.56732658]
[1738200922814,0.355214,104600.0,104590.0,0.56732658]
[1738200923019,0.8215779,104600.0,104590.0,0.01529458]
[1738200924214,0.8215779,104600.0,104590.0,0.001]
[1738200924414,0.191232,104590.0,104580.0,0.00014398]
[1738200924610,0.191232,104590.0,104570.0,0.39698916]
[1738200924611,0.19125,104580.0,104570.0,0.39698916]
[1738200924816,0.7030139,104580.0,104570.0,0.39698916]
[1738200925118,0.59745,104580.0,104570.0,0.39698916]
[1738200925314,0.59745,104580.0,104570.0,0.41122705]
[1738200925514,0.7030139,104580.0,104570.0,0.36102705]
[1738200925715,0.191269,104570.0,104560.0,0.27584609]
[1738200926013,0.552069,104570.0,104560.0,0.27584609]
[1738200926516,0.191269,104570.0,104560.0,0.27584609]
[1738200926722,0.191269,104570.0,104560.0,0.82793309]
[1738200926925,0.04548,104570.0,104560.0,0.82793309]
[1738200927215,0.04642398,104580.0,104570.0,0.191269]
[1738200927407,0.00114398,104580.0,104570.0,0.6576329]
[1738200927916,0.00114398,104580.0,104570.0,2.3231968]
[1738200928112,0.1,104600.0,104580.0,0.2111278]
[1738200928312,0.1,104600.0,104590.0,0.2967959]
[1738200928511,0.1,104600.0,104590.0,0.6575959]
[1738200928712,0.1,104600.0,104590.0,2.1575959]
[1738200929310,0.3608,104570.0,104560.0,0.17013821]
[1738200929517,0.3608,104570.0,104510.0,9.232e-05]
[1738200929518,0.3608,104540.0,104510.0,9.232e-05]
[1738200929720,0.3608,104540.0,104470.0,0.75663128]
[1738200929721,0.191378,104510.0,104500.0,0.26200413]
[1738200929913,0.7216,104520.0,104500.0,1.61968509]
[1738200929914,0.3608,104520.0,104500.0,1.61968509]
[1738200930114,0.1625639,104510.0,104500.0,1.42828809]
[1738200930417,0.057,104510.0,104500.0,1.72524899]
[1738200930825,0.057,104510.0,104500.0,1.62168509]
[1738200931412,0.4178,104510.0,104500.0,1.06948809]
[1738200931731,0.609178,104510.0,104500.0,1.07048809]
[1738200932113,0.609178,104510.0,104500.0,1.17605199]
[1738200932617,0.609178,104510.0,104500.0,1.07048809]
[1738200933124,0.609178,104510.0,104500.0,0.003]
[1738200933423,0.191397,104500.0,104490.0,0.00014398]
[1738200933722,0.6881609,104500.0,104490.0,0.00014398]
[1738200934729,0.191476,104460.0,104440.0,0.349934]
[1738200935024,0.552288,104450.0,104430.0,0.38195163]
[1738200935222,0.191488,104450.0,104440.0,0.158431]
[1738200935425,0.614911,104460.0,104440.0,0.349938]
[1738200935721,9.232e-05,104450.0,104440.0,0.349938]
[1738200936123,0.61505498,104460.0,104440.0,0.349938]
[1738200936319,0.552295,104450.0,104430.0,0.21505371]
[1738200936526,0.552295,104450.0,104430.0,0.37348471]
[1738200936715,6.98e-05,104440.0,104430.0,0.37348471]
[1738200936914,0.552295,104450.0,104430.0,0.37348471]
[1738200937123,0.552295,104450.0,104440.0,0.009]
[1738200937321,0.55238732,104450.0,104440.0,0.009]
[1738200937625,0.552295,104450.0,104440.0,0.009]
[1738200937827,0.58201498,104460.0,104440.0,0.009]
[1738200938027,0.61505798,104460.0,104440.0,0.200506]
[1738200938327,0.3608,104450.0,104440.0,0.009]
[1738200938515,0.77348898,104460.0,104440.0,0.009]
[1738200938714,0.77348898,104460.0,104430.0,0.58085071]
[1738200939127,0.77348898,104460.0,104430.0,0.38932971]
[1738200939322,0.77648898,104460.0,104440.0,0.191506]
[1738200939924,0.77448898,104460.0,104450.0,1.5]
[1738200940127,0.77548898,104460.0,104450.0,1.5]
[1738200941024,0.61989798,104460.0,104450.0,1.5]
[1738200941231,0.25909798,104460.0,104450.0,1.5]
[1738200941424,0.77832898,104460.0,104450.0,1.5]
[1738200941625,0.77732898,104460.0,104450.0,1.5]
[1738200941821,0.78032898,104460.0,104450.0,1.5]
[1738200942326,0.58585498,104460.0,104430.0,0.01452971]
[1738200942525,0.349938,104440.0,104430.0,0.01452971]
[1738200942721,0.710738,104440.0,104430.0,0.01452971]
[1738200942925,0.776178,104440.0,104430.0,0.01452971]
[1738200943120,0.776178,104440.0,104430.0,0.00014398]
[1738200945236,0.777178,104440.0,104430.0,0.00014398]
[1738200946227,0.808778,104440.0,104430.0,0.00014398]
[1738200947122,0.967209,104440.0,104430.0,0.00014398]
[1738200947730,0.349956,104430.0,104420.0,0.00143632]
[1738200948035,0.710756,104430.0,104420.0,0.00143632]
[1738200949235,0.710756,104430.0,104420.0,0.00343632]
[1738200949637,0.710756,104430.0,104420.0,0.00443632]
[1738200951937,0.58377498,104440.0,104420.0,0.194528]
[1738200951938,0.55245398,104440.0,104420.0,0.194528]
[1738200952239,0.0676,104430.0,104420.0,0.553328]
[1738200952540,0.226031,104430.0,104420.0,0.552328]
[1738200953033,0.417676,104430.0,104420.0,0.552328]
[1738200953441,0.417676,104430.0,104420.0,0.191528]
[1738200956640,0.3649684,104430.0,104420.0,0.191528]
[1738200956934,0.36506072,104430.0,104420.0,0.191528]
[1738200957341,0.3649684,104430.0,104420.0,0.20494672]
[1738200958043,0.8314918,104430.0,104420.0,0.01341872]
[1738200958244,0.191543,104420.0,104410.0,0.55250098]
[1738200958536,0.2972664,104420.0,104410.0,0.55250098]
[1738200959541,0.2982664,104420.0,104410.0,0.19170098]
[1738200959742,0.2982664,104420.0,104410.0,0.20468204]
[1738200960634,0.6590664,104420.0,104410.0,0.20468204]
[1738200961339,0.6590664,104420.0,104410.0,0.01312504]
[1738200961531,0.6918664,104420.0,104410.0,0.00014398]
[1738200962243,0.69193448,104420.0,104410.0,0.00014398]
[1738200962440,0.6918664,104420.0,104410.0,0.00014398]
[1738200962640,0.69195872,104420.0,104410.0,0.00014398]
[1738200962842,0.6919492,104420.0,104410.0,0.00014398]
[1738200963145,0.6918664,104420.0,104410.0,0.00014398]
[1738200963340,0.6918664,104420.0,104410.0,0.19170598]
[1738200963646,0.6590664,104420.0,104410.0,0.19170598]
[1738200964947,0.3618,104420.0,104410.0,0.19170598]
[1738200965250,0.42528,104420.0,104410.0,0.19170598]
[1738200965548,0.42528,104420.0,104410.0,0.22440598]
[1738200966033,0.7224664,104420.0,104410.0,0.00014398]
[1738200967040,0.97633329,104420.0,104410.0,0.00014398]
[1738200967741,0.97642426,104420.0,104410.0,0.00014398]
[1738200967947,1.00921151,104420.0,104410.0,0.00014398]
[1738200968146,1.00921151,104420.0,104400.0,0.11264117]
[1738200968147,0.92339936,104420.0,104400.0,0.1]
[1738200968336,0.7962088,104410.0,104400.0,0.1]
[1738200968537,0.6904854,104410.0,104400.0,0.1]
[1738200969254,0.6904854,104410.0,104400.0,0.101]
[1738200970647,0.83118219,104410.0,104400.0,0.103]
[1738200971047,0.83118219,104410.0,104400.0,0.102]
[1738200971248,1.04534359,104410.0,104390.0,0.00014398]
[1738200971448,0.191617,104380.0,104370.0,0.0014369]
[1738200971638,0.7210204,104380.0,104370.0,0.0014369]
[1738200971845,1.0818204,104380.0,104370.0,0.0014369]
[1738200972048,0.191654,104360.0,104350.0,2.07288641]
[1738200972548,0.6581774,104360.0,104350.0,1.78331841]
[1738200973053,0.6581774,104360.0,104350.0,0.28331841]
[1738200973653,0.6883774,104360.0,104350.0,0.28331841]
[1738200973852,0.68846972,104360.0,104350.0,0.28331841]
[1738200974051,0.6883774,104360.0,104350.0,0.28331841]
[1738200974238,0.68845074,104360.0,104350.0,0.28731841]
[1738200974440,0.6883774,104360.0,104350.0,0.28731841]
[1738200974844,0.6883774,104360.0,104350.0,0.29131841]
[1738200975255,0.68846972,104360.0,104350.0,0.28931841]
[1738200975548,0.6883774,104360.0,104350.0,0.28931841]
[1738200975848,0.6883774,104360.0,104350.0,0.006]
[1738200976157,0.191672,104350.0,104340.0,0.00014398]
[1738200976347,0.7529354,104350.0,104340.0,0.00014398]
[1738200977352,0.7529354,104350.0,104340.0,0.00214398]
[1738200978043,0.647212,104350.0,104340.0,0.00214398]
[1738200978456,0.647212,104350.0,104340.0,0.00314398]
[1738200978658,0.614912,104350.0,104340.0,0.19483398]
[1738200979251,0.614912,104350.0,104340.0,0.00314398]
[1738200979755,0.552472,104350.0,104340.0,0.00314398]
[1738200980060,0.06152,104350.0,104340.0,0.30054338]
[1738200980264,0.253192,104350.0,104340.0,0.00314398]
[1738200980451,0.613992,104350.0,104340.0,0.00314398]
[1738200980760,9.232e-05,104350.0,104340.0,0.714457]
[1738200981056,0.552457,104360.0,104340.0,1.886054]
[1738200981257,0.552472,104350.0,104340.0,0.03454398]
[1738200981457,0.554472,104350.0,104340.0,0.03254398]
[1738200981657,0.554472,104350.0,104340.0,0.00014398]
[1738200981855,0.617872,104350.0,104340.0,0.00014398]
[1738200982257,0.77669502,104350.0,104340.0,0.00014398]
[1738200986662,0.77678734,104350.0,104340.0,0.00014398]
[1738200986854,0.77676331,104350.0,104340.0,0.00014398]
[1738200987059,0.77678734,104350.0,104340.0,0.00014398]
[1738200987260,0.77669502,104350.0,104340.0,0.00014398]
[1738200988266,0.36079902,104340.0,104300.0,0.1]
[1738200988468,1.07216802,104310.0,104300.0,0.1]
[1738200988674,1.13484802,104310.0,104300.0,0.1]
[1738200990369,1.13484802,104310.0,104300.0,0.102]
[1738200990671,0.976025,104310.0,104300.0,0.106]
[1738200991168,0.976025,104310.0,104300.0,0.101]
[1738200991369,0.97611732,104310.0,104300.0,0.102]
[1738200991570,1.13484802,104310.0,104300.0,0.102]
[1738200991779,0.42370398,104320.0,104300.0,0.45258302]
[1738200991964,0.42370398,104320.0,104310.0,0.0312]
[1738200992669,0.42370398,104320.0,104310.0,0.222945]
[1738200992976,0.06290398,104320.0,104310.0,0.38176802]
[1738200993174,0.06290398,104320.0,104310.0,0.222945]
[1738200993780,0.0629963,104320.0,104310.0,0.222945]
[1738200993977,0.00023436,104320.0,104310.0,0.222945]
[1738200994167,0.00023436,104320.0,104310.0,1.722945]
[1738200994168,0.00014398,104320.0,104310.0,1.722945]
[1738200994369,0.00014398,104320.0,104310.0,0.222945]
[1738200994562,0.00114398,104320.0,104310.0,0.222945]
[1738200994770,0.00114398,104320.0,104310.0,0.583745]
[1738200994972,0.00114398,104320.0,104310.0,0.74256802]
[1738200995179,0.11334129,104330.0,104320.0,0.191727]
[1738200995377,0.11334129,104330.0,104320.0,0.71135002]
[1738200995972,0.11334129,104330.0,104320.0,2.21135002]
[1738200996875,0.11734129,104330.0,104320.0,2.21135002]
[1738200997079,0.11834129,104330.0,104320.0,2.21135002]
[1738200997380,0.0956162,104330.0,104320.0,2.21135002]
[1738200997679,0.005,104330.0,104320.0,2.21135002]
[1738200997869,0.00508914,104330.0,104320.0,2.21135002]
[1738200998069,0.005,104330.0,104320.0,2.21135002]
[1738200998771,0.00509232,104330.0,104320.0,2.21135002]
[1738200999981,0.00509232,104330.0,104320.0,2.22390834]
[1738201000279,0.00158268,104340.0,104330.0,0.191709]
[1738201000476,0.00158268,104340.0,104330.0,0.71133202]
[1738201001582,0.00214398,104340.0,104330.0,1.01133202]
[1738201001782,0.0325,104360.0,104350.0,0.191672]
[1738201002079,0.191653,104360.0,104350.0,0.191672]
[1738201002283,0.552453,104360.0,104340.0,0.191687]
[1738201002475,0.3608,104350.0,104320.0,0.53218134]
[1738201002676,0.51962302,104350.0,104330.0,0.191705]
[1738201002880,0.19169,104340.0,104330.0,0.191705]
[1738201003079,0.19769,104340.0,104330.0,0.192705]
[1738201003280,0.006,104340.0,104330.0,0.192705]
[1738201003683,0.711445,104350.0,104330.0,0.191705]
[1738201003977,0.55262198,104350.0,104330.0,0.193705]
[1738201004381,0.19182198,104350.0,104340.0,0.19169]
[1738201004971,0.00014398,104350.0,104340.0,0.19169]
[1738201006581,0.00114398,104350.0,104340.0,0.19169]
[1738201006883,0.00114398,104350.0,104340.0,0.71131302]
[1738201007084,0.00114398,104350.0,104340.0,0.19169]
[1738201007986,0.00014398,104350.0,104340.0,0.19269]
[1738201008189,0.00014398,104350.0,104340.0,0.19469]
[1738201008681,0.00014398,104350.0,104340.0,0.19369]
[1738201008882,0.00014398,104350.0,104340.0,0.71331302]
[1738201009082,0.00014398,104350.0,104340.0,0.72528092]
[1738201009587,0.00014398,104350.0,104340.0,0.2056579]
[1738201009786,0.00014398,104350.0,104340.0,0.5664579]
[1738201010186,0.00114398,104350.0,104340.0,0.5644579]
[1738201011684,0.00114398,104350.0,104340.0,0.2036579]
[1738201011890,0.00114398,104350.0,104340.0,0.5644579]
[1738201013279,0.00114398,104350.0,104340.0,0.72328092]
[1738201013486,9.8e-07,104350.0,104340.0,0.82328092]
[1738201013683,0.14213492,104380.0,104340.0,0.93159092]
[1738201013884,0.33375392,104380.0,104360.0,0.71125902]
[1738201014084,0.75707392,104380.0,104360.0,0.552436]
[1738201014493,0.191635,104370.0,104360.0,0.552436]
[1738201014689,0.191635,104370.0,104360.0,0.55257998]
[1738201016587,0.553435,104370.0,104360.0,0.00014398]
[1738201016995,0.71225802,104370.0,104360.0,0.00014398]
[1738201017296,0.191684,104350.0,104330.0,0.41984705]
[1738201017496,0.615764,104350.0,104330.0,0.41984705]
[1738201017794,0.254964,104350.0,104340.0,0.19169]
[1738201017997,0.615764,104350.0,104340.0,0.19169]
[1738201018396,0.06328,104350.0,104340.0,0.19169]
[1738201019791,0.615752,104350.0,104330.0,2.29962837]
[1738201019991,0.55249,104340.0,104330.0,0.24712537]
[1738201020193,0.55249,104340.0,104330.0,0.24512537]
[1738201020386,0.19169,104340.0,104330.0,0.24012537]
[1738201020591,0.19169,104340.0,104330.0,0.43183437]
[1738201020802,0.55249,104340.0,104330.0,0.43183437]
[1738201021300,0.55249,104340.0,104330.0,0.20668832]
[1738201021498,0.19169,104340.0,104330.0,0.20668832]
[1738201022104,0.55249,104340.0,104330.0,0.20668832]
[1738201022803,0.55249,104340.0,104330.0,0.00314398]
[1738201023103,0.71131302,104340.0,104330.0,0.00314398]
[1738201023496,0.55249,104340.0,104330.0,0.00314398]
[1738201024398,0.71131302,104340.0,104330.0,0.00314398]
[1738201026506,0.77501302,104340.0,104330.0,0.00314398]
[1738201031213,0.83457302,104340.0,104330.0,0.00314398]
[1738201032716,0.88764282,104340.0,104330.0,0.00314398]
[1738201033512,0.89911104,104340.0,104330.0,0.00314398]
[1738201033713,1.07070985,104340.0,104330.0,0.00314398]
[1738201036521,0.29767341,104320.0,104310.0,0.0986]
[1738201036818,1.01927341,104320.0,104310.0,0.0986]
[1738201037625,1.01927341,104320.0,104310.0,0.1036]
[1738201039121,1.01927341,104320.0,104310.0,0.0986]
[1738201039322,1.01927341,104320.0,104310.0,0.1026]
[1738201039723,1.10498659,104320.0,104310.0,0.1026]
[1738201040123,1.210933,104320.0,104310.0,0.0364]
[1738201040317,1.10498659,104320.0,104310.0,0.0364]
[1738201042534,1.16246659,104320.0,104310.0,0.0364]
[1738201043729,1.21960871,104320.0,104310.0,0.0364]
[1738201046518,1.23113463,104320.0,104310.0,0.0364]
[1738201047336,1.40256099,104320.0,104310.0,0.0364]
[1738201048237,1.28364866,104320.0,104310.0,0.0364]
[1738201048729,1.38959507,104320.0,104310.0,0.0364]
[1738201050738,1.21816871,104320.0,104310.0,0.0364]
[1738201050934,1.16212871,104320.0,104310.0,0.0364]
[1738201051137,1.21768871,104320.0,104310.0,0.0364]
[1738201054439,1.24625977,104320.0,104310.0,0.0364]
[1738201057835,1.07483341,104320.0,104310.0,0.0364]
[1738201058444,1.07323341,104320.0,104310.0,0.0364]
[1738201059152,1.07323341,104320.0,104310.0,0.003]
[1738201059153,1.17917982,104320.0,104310.0,0.003]
[1738201059442,1.21227982,104320.0,104310.0,0.003]
[1738201061637,1.21227982,104320.0,104310.0,0.002]
[1738201062337,1.21227982,104320.0,104300.0,0.10014398]
[1738201062338,0.191745,104310.0,104300.0,0.10014398]
[1738201062537,0.82823782,104310.0,104300.0,0.10014398]
[1738201063841,0.82823782,104310.0,104300.0,0.10314398]
[1738201064145,0.191782,104290.0,104280.0,0.17105015]
[1738201064448,1.17899482,104290.0,104280.0,0.17105015]
[1738201064747,1.07304841,104290.0,104280.0,0.17105015]
[1738201065343,1.07404841,104290.0,104280.0,0.17105015]
[1738201066543,0.1918,104280.0,104270.0,9.6e-05]
[1738201066850,0.65854641,104280.0,104270.0,9.6e-05]
[1738201067246,0.46854641,104280.0,104270.0,9.6e-05]
[1738201067549,0.65854641,104280.0,104270.0,9.6e-05]
[1738201067747,0.65854641,104280.0,104270.0,0.001096]
[1738201068541,0.65854641,104280.0,104270.0,0.002096]
[1738201070053,0.66945236,104280.0,104270.0,0.002096]
[1738201070552,0.81284275,104280.0,104270.0,0.002096]
[1738201073747,0.92747177,104280.0,104270.0,0.002096]
[1738201075850,0.82152536,104280.0,104270.0,0.002096]
[1738201077762,0.67813497,104280.0,104270.0,0.002096]
[1738201078347,0.11462902,104280.0,104270.0,0.29986141]
[1738201078552,0.11462902,104280.0,104270.0,0.66066141]
[1738201078751,0.11462902,104280.0,104270.0,0.29986141]
[1738201078954,0.47542902,104280.0,104270.0,0.29986141]
[1738201079267,0.11462902,104280.0,104270.0,0.29986141]
[1738201080261,0.66722902,104280.0,104270.0,0.002096]
[1738201080856,0.5526,104280.0,104270.0,0.002096]
[1738201082263,0.60556,104280.0,104270.0,0.002096]
[1738201082969,0.71150641,104280.0,104270.0,0.002096]
[1738201083163,0.81745282,104280.0,104270.0,0.002096]
[1738201083359,0.89295282,104280.0,104270.0,0.002096]
[1738201083560,0.70115282,104280.0,104250.0,0.17105015]
[1738201083763,0.913437,104260.0,104250.0,0.17105015]
[1738201083956,1.01938341,104260.0,104250.0,0.17105015]
[1738201085264,1.05438341,104260.0,104250.0,0.17105015]
[1738201085673,1.05438341,104260.0,104250.0,0.17305015]
[1738201086170,1.05438341,104260.0,104250.0,0.17205015]
[1738201086368,0.191874,104240.0,104230.0,0.17105015]
[1738201086565,0.606354,104240.0,104230.0,0.17105015]
[1738201088369,0.606354,104240.0,104230.0,0.17205015]
[1738201088666,0.41448,104240.0,104230.0,0.27799656]
[1738201088871,0.41448,104240.0,104230.0,0.17205015]
[1738201089065,0.41448,104240.0,104230.0,0.17305015]
[1738201089266,0.52042641,104240.0,104230.0,0.17305015]
[1738201090371,1.07310041,104240.0,104230.0,0.17305015]
[1738201090673,1.07310041,104240.0,104230.0,0.13165228]
[1738201090976,0.19192,104220.0,104200.0,0.56643688]
[1738201091160,0.51990641,104210.0,104200.0,0.56643688]
[1738201091670,0.41396,104210.0,104200.0,0.56643688]
[1738201092265,0.05316,104210.0,104200.0,0.87133129]
[1738201092571,0.05316,104210.0,104200.0,1.23213129]
[1738201092977,0.05416,104210.0,104200.0,0.87133129]
[1738201093167,0.05416,104210.0,104200.0,1.23213129]
[1738201093479,0.001,104210.0,104200.0,1.23513129]
[1738201093672,0.49991833,104240.0,104200.0,1.04318329]
[1738201093872,0.08595833,104240.0,104230.0,0.29783841]
[1738201094071,0.08595833,104240.0,104230.0,0.191892]
[1738201094276,0.08595833,104240.0,104230.0,0.263092]
[1738201094772,0.08595833,104240.0,104230.0,0.72983841]
[1738201094981,0.13991833,104240.0,104230.0,0.72983841]
[1738201095178,0.08595833,104240.0,104230.0,0.72983841]
[1738201095575,0.08795833,104240.0,104230.0,0.72983841]
[1738201095885,0.14539039,104240.0,104230.0,0.72983841]
[1738201096080,0.14639039,104240.0,104230.0,0.72983841]
[1738201096781,0.14639039,104240.0,104230.0,0.76783841]
[1738201097774,0.14639039,104240.0,104230.0,0.661892]
[1738201097976,0.14639039,104240.0,104230.0,0.76783841]
[1738201099773,0.003,104240.0,104230.0,0.76783841]
[1738201102179,0.003,104240.0,104230.0,0.77842605]
[1738201103387,0.00014398,104250.0,104240.0,0.191874]
[1738201103689,0.00014398,104250.0,104240.0,0.65862041]
[1738201104188,0.00014398,104250.0,104240.0,0.552674]
[1738201104691,0.00214398,104250.0,104240.0,0.552674]
[1738201104985,0.00614398,104250.0,104240.0,0.552674]
[1738201105486,0.00114398,104250.0,104240.0,0.65862041]
[1738201116694,0.00114398,104250.0,104240.0,0.70862041]
[1738201116900,0.00114398,104250.0,104240.0,0.65862041]
[1738201120694,0.27198401,104270.0,104260.0,0.191837]
[1738201120901,0.27198401,104270.0,104260.0,0.65858341]
[1738201121591,0.20038401,104270.0,104260.0,0.65858341]
[1738201122190,0.20738401,104270.0,104260.0,0.65958341]
[1738201122392,0.12150515,104270.0,104260.0,0.65958341]
[1738201122987,0.12450515,104270.0,104260.0,0.65958341]
[1738201123697,0.12450515,104270.0,104260.0,0.73438341]
[1738201126091,0.12450515,104270.0,104260.0,1.09518341]
[1738201126597,0.09614851,104270.0,104260.0,1.09518341]
[1738201128392,0.09614851,104270.0,104260.0,1.10623743]
[1738201131495,0.01,104270.0,104260.0,1.10623743]
[1738201131694,0.01,104270.0,104260.0,1.21623743]
[1738201132088,0.08629249,104280.0,104260.0,1.02440043]
[1738201132295,0.08629249,104280.0,104270.0,0.69546541]
[1738201133294,0.09929249,104280.0,104270.0,0.69546541]
[1738201134692,0.09029249,104280.0,104270.0,0.69546541]
[1738201134897,0.09329249,104280.0,104270.0,0.69646541]
[1738201135800,0.20779764,104280.0,104270.0,0.69646541]
[1738201137295,0.20779764,104280.0,104270.0,0.33566541]
[1738201137496,0.20779764,104280.0,104270.0,0.69646541]
[1738201139102,0.20779764,104280.0,104270.0,0.79646541]
[1738201139291,0.00714398,104280.0,104270.0,0.69646541]
[1738201139497,0.00714398,104280.0,104270.0,2.19646541]
[1738201139706,0.00714398,104280.0,104270.0,0.69646541]
[1738201139900,0.11309039,104280.0,104270.0,0.553619]
[1738201140196,0.69939039,104280.0,104270.0,0.001]
[1738201141496,0.23264398,104280.0,104270.0,0.46774641]
[1738201141696,0.04084398,104280.0,104270.0,0.10694641]
[1738201141891,0.03484398,104280.0,104270.0,0.65856541]
[1738201142096,0.03784398,104280.0,104270.0,0.65856541]
[1738201142504,0.00114398,104280.0,104270.0,0.65856541]
[1738201142701,0.00414398,104280.0,104270.0,0.69286541]
[1738201143202,0.00414398,104280.0,104270.0,0.76036541]
[1738201144204,0.00414398,104280.0,104270.0,0.82036541]
[1738201144413,0.00414398,104280.0,104270.0,0.92631182]
[1738201144708,0.20065366,104290.0,104280.0,0.1918]
[1738201144905,0.14339039,104290.0,104280.0,0.86449282]
[1738201145208,0.14339039,104290.0,104280.0,0.76449282]
[1738201145507,0.14339039,104290.0,104280.0,2.31449282]
[1738201145900,0.0603669,104290.0,104280.0,2.31449282]
[1738201147507,0.0603669,104290.0,104280.0,0.65854641]
[1738201147706,0.0941669,104290.0,104280.0,0.65854641]
[1738201148306,0.0388,104290.0,104280.0,0.88593101]
[1738201150508,0.005,104290.0,104280.0,0.99187742]
[1738201151009,0.005,104290.0,104280.0,1.10187742]
[1738201151606,0.005,104290.0,104280.0,0.87449282]
[1738201151807,0.005,104290.0,104280.0,0.76449282]
[1738201152106,0.005,104290.0,104280.0,0.88449282]
[1738201153502,0.005,104290.0,104280.0,2.38449282]
[1738201154408,0.005,104290.0,104280.0,2.30449282]
[1738201154599,0.005,104290.0,104280.0,0.65854641]
[1738201155002,0.005,104290.0,104280.0,0.5526]
[1738201155214,0.234082,104290.0,104280.0,0.5526]
[1738201155412,0.234082,104290.0,104270.0,1.87867117]
[1738201155611,0.234082,104290.0,104280.0,0.3608]
[1738201155919,0.234082,104290.0,104270.0,2.06999517]
[1738201156119,0.234082,104290.0,104280.0,0.79480512]
[1738201156302,0.231082,104290.0,104280.0,0.79480512]
[1738201156504,0.591882,104290.0,104280.0,0.79480512]
[1738201157006,0.590882,104290.0,104280.0,0.79480512]
[1738201157309,0.69682841,104290.0,104280.0,0.79480512]
[1738201157710,0.69582841,104290.0,104280.0,0.79480512]
[1738201157905,0.69782841,104290.0,104280.0,0.79480512]
[1738201160022,0.89854868,104290.0,104270.0,0.29789439]
[1738201160208,0.0344,104280.0,104270.0,0.29789439]
[1738201161117,0.0344,104280.0,104270.0,0.19194798]
[1738201161304,0.69294641,104280.0,104270.0,0.00014398]
[1738201163019,0.69394641,104280.0,104270.0,0.00014398]
[1738201164306,0.79989282,104280.0,104270.0,0.00014398]
[1738201165110,0.69394641,104280.0,104270.0,0.00014398]
[1738201165312,0.79989282,104280.0,104270.0,0.00014398]
[1738201167925,0.69394641,104280.0,104270.0,0.00014398]
[1738201168221,0.70407896,104280.0,104270.0,0.00014398]
[1738201168424,0.191835,104270.0,104250.0,1.51052312]
[1738201168723,0.3608,104260.0,104250.0,1.51052312]
[1738201169317,0.552637,104260.0,104250.0,1.51052312]
[1738201169820,0.552637,104260.0,104250.0,1.51452312]
[1738201170524,0.625737,104260.0,104250.0,1.51452312]
[1738201170719,0.73168341,104260.0,104250.0,1.504]
[1738201170922,0.73168341,104260.0,104250.0,0.004]
[1738201174825,0.93191998,104260.0,104250.0,0.004]
[1738201175026,0.94229011,104260.0,104250.0,0.004]
[1738201175344,1.00129011,104260.0,104250.0,0.004]
[1738201177125,0.80105354,104260.0,104250.0,0.004]
[1738201180824,0.88686921,104260.0,104250.0,0.004]
[1738201183328,0.88786921,104260.0,104250.0,0.003]
[1738201183826,0.88686921,104260.0,104250.0,0.003]
[1738201184027,0.88986921,104260.0,104250.0,0.003]
[1738201184229,0.191856,104250.0,104240.0,0.00014398]
[1738201184436,0.65860241,104250.0,104240.0,0.00014398]
[1738201185937,0.76454882,104250.0,104240.0,0.00014398]
[1738201186148,0.191892,104230.0,104220.0,0.0343]
[1738201186439,0.191927,104220.0,104210.0,0.0356]
[1738201186738,0.76461982,104220.0,104210.0,0.0356]
[1738201187342,0.191929,104210.0,104200.0,0.39836788]
[1738201187647,0.65867541,104210.0,104200.0,0.39836788]
[1738201188240,0.65867541,104210.0,104200.0,0.32752858]
[1738201188429,0.69327541,104210.0,104200.0,0.32752858]
[1738201190239,0.69327541,104210.0,104200.0,0.33352858]
[1738201190541,0.69327541,104210.0,104200.0,0.10614398]
[1738201190736,0.69327541,104210.0,104200.0,0.10014398]
[1738201192842,0.65867541,104210.0,104200.0,0.10014398]
[1738201193539,0.71743541,104210.0,104200.0,0.10014398]
[1738201193729,0.71747541,104210.0,104200.0,0.10014398]
[1738201194336,0.65867541,104210.0,104200.0,0.13384398]
[1738201194541,0.71727541,104210.0,104200.0,0.13399544]
[1738201195134,0.91770774,104210.0,104200.0,0.13399544]
[1738201195737,0.81176133,104210.0,104200.0,0.13399544]
[1738201195936,0.25903233,104210.0,104200.0,0.13399544]
[1738201196135,0.25903233,104210.0,104200.0,0.20629544]
[1738201196543,0.20043233,104210.0,104200.0,0.50418985]
[1738201197044,0.20043233,104210.0,104200.0,0.86498985]
[1738201198345,0.20043233,104210.0,104200.0,0.86798985]
[1738201198547,0.55757772,104230.0,104210.0,0.191925]
[1738201199348,0.91837772,104230.0,104210.0,0.191925]
[1738201199947,0.56766341,104230.0,104210.0,0.191925]
[1738201200348,0.402557,104230.0,104210.0,0.29787141]
[1738201200547,0.461357,104230.0,104210.0,0.29787141]